bitfinex-derivatives/quotes_ETHF0:USTF0_20241102
["timestamp","ask_amount","ask_price","bid_price","bid_amount"]
[1730560793905,2.53454339,2485.0,2484.9,0.857975]
[1730560794103,0.4259,2485.0,2484.9,0.857975]
[1730560794404,0.4259,2485.0,2484.9,0.28177]
[1730560794600,2.53466472,2485.0,2484.9,0.28177]
[1730560794901,2.53466472,2485.0,2484.9,0.85456309]
[1730560795407,2.53466472,2485.0,2484.9,0.85454909]
[1730560796098,2.53466472,2485.0,2484.9,0.85455225]
[1730560796507,2.53466472,2485.0,2484.9,1.42733446]
[1730560796809,2.53466472,2485.0,2484.9,0.85454147]
[1730560797000,2.53466472,2485.0,2484.9,0.28177]
[1730560797200,2.53466472,2485.0,2484.9,0.85453747]
[1730560798710,2.53466472,2485.0,2484.9,0.85450809]
[1730560798909,2.10876472,2485.0,2484.9,0.85450809]
[1730560800411,2.39052472,2485.0,2484.9,0.85450809]
[1730560801215,2.63281432,2485.2,2484.9,5.51305554]
[1730560801216,2.10876472,2485.2,2484.9,5.51305554]
[1730560801507,5.84061432,2485.3,2485.2,0.28173]
[1730560801508,2.10876472,2485.3,2485.2,0.28173]
[1730560802005,2.10723977,2485.3,2484.9,0.4318]
[1730560802214,2.10723977,2485.3,2485.0,0.85437229]
[1730560802215,0.28175,2485.1,2485.0,0.85437229]
[1730560802406,0.28177,2484.9,2484.7,0.28178]
[1730560802604,0.28178,2484.8,2484.7,0.28178]
[1730560802903,0.28178,2484.8,2484.5,0.9051]
[1730560802904,2.38900977,2484.9,2484.8,0.28178]
[1730560803702,0.28179,2484.7,2484.6,0.2818]
[1730560803904,0.28179,2484.7,2484.6,1.76192481]
[1730560804205,0.28179,2484.7,2484.6,0.85107806]
[1730560805207,0.28179,2484.7,2484.6,0.85106806]
[1730560805904,0.28179,2484.8,2484.7,0.28179]
[1730560806103,0.28179,2484.8,2484.7,0.85109456]
[1730560806506,0.28179,2484.8,2484.7,0.85110115]
[1730560806706,0.28179,2484.8,2484.7,0.56931115]
[1730560806903,0.2818,2484.6,2484.4,1.3344461]
[1730560807107,0.438,2484.5,2484.4,0.28182]
[1730560807301,0.28183,2484.4,2484.3,0.28183]
[1730560807506,0.438,2484.5,2484.2,0.28184]
[1730560807507,0.28184,2484.3,2484.2,0.28184]
[1730560807705,2.55271638,2484.4,2484.3,0.28183]
[1730560808008,0.4447,2484.4,2484.3,0.84786348]
[1730560808208,0.4447,2484.4,2484.0,0.901]
[1730560808209,0.28183,2484.3,2484.0,0.901]
[1730560808416,2.83454638,2484.4,2484.3,0.28183]
[1730560810915,2.83454638,2484.4,2484.2,0.28184]
[1730560811314,2.55271638,2484.4,2484.2,0.28184]
[1730560811509,0.28183,2484.3,2484.2,0.28184]
[1730560811709,2.83454638,2484.4,2484.2,0.28184]
[1730560811904,2.83454638,2484.4,2484.0,0.901]
[1730560812110,0.72653,2484.4,2484.2,0.28185]
[1730560812509,0.72653,2484.4,2484.0,0.901]
[1730560812715,0.72653,2484.4,2484.3,0.28183]
[1730560813411,0.72653,2484.4,2484.2,0.28184]
[1730560813607,0.72653,2484.4,2484.0,0.901]
[1730560813811,0.72653,2484.4,2484.3,0.28183]
[1730560815617,0.28184,2484.3,2484.1,0.28185]
[1730560815827,2.83454638,2484.4,2484.3,0.28183]
[1730560816021,0.28184,2484.3,2484.2,0.28184]
[1730560816418,0.4447,2484.4,2484.0,0.901]
[1730560816624,0.28184,2484.3,2484.0,0.901]
[1730560816824,0.28184,2484.3,2484.2,0.28185]
[1730560817224,2.55271638,2484.4,2484.3,0.28183]
[1730560817412,2.10801638,2484.6,2484.5,0.28181]
[1730560817612,2.10801638,2484.7,2484.2,0.7046]
[1730560817816,2.10801638,2484.7,2484.2,0.8603]
[1730560818112,0.2818,2484.6,2484.5,0.28181]
[1730560818424,5.25192392,2484.6,2484.2,0.4309]
[1730560818620,0.28183,2484.3,2484.2,0.71274]
[1730560818821,0.28183,2484.3,2484.2,0.28184]
[1730560819020,0.28183,2484.3,2484.2,0.28185]
[1730560819216,0.4597,2484.4,2484.2,0.28185]
[1730560819217,0.74153,2484.4,2484.2,0.28185]
[1730560819418,0.28183,2484.3,2484.2,0.28185]
[1730560821718,0.28185,2484.2,2484.1,0.28185]
[1730560821922,0.28185,2484.2,2484.1,0.84028502]
[1730560822227,0.4597,2484.4,2484.1,0.55843502]
[1730560822426,0.74153,2484.4,2484.0,0.4309]
[1730560822729,0.28183,2484.3,2484.2,0.28184]
[1730560824325,0.74153,2484.4,2484.3,0.28183]
[1730560824719,2.56091638,2484.5,2484.0,3.6387]
[1730560824918,2.10801638,2484.5,2484.4,0.28182]
[1730560825115,2.10801638,2484.5,2484.4,4.86472096]
[1730560825318,2.10801638,2484.5,2484.4,2.12162096]
[1730560825923,2.10801638,2484.5,2484.4,1.68612096]
[1730560826326,5.25192392,2484.8,2484.4,1.40430096]
[1730560826626,5.53370392,2484.8,2484.7,0.28179]
[1730560826927,2.38979638,2484.8,2484.7,0.28179]
[1730560830320,2.10801638,2484.8,2484.7,0.28179]
[1730560831433,0.70107,2484.9,2484.7,0.28178]
[1730560831928,0.70107,2484.9,2484.8,0.4567]
[1730560832721,0.70107,2484.9,2484.8,0.73848]
[1730560832917,2.10801638,2485.0,2484.8,0.4567]
[1730560833117,6.35170754,2485.1,2484.9,0.4271]
[1730560833118,5.31581638,2485.1,2484.9,0.4271]
[1730560833326,2.84155638,2485.2,2485.0,0.28176]
[1730560833530,2.84155638,2485.2,2484.9,0.4271]
[1730560833531,0.4518,2485.2,2485.1,0.28174]
[1730560833734,0.4518,2485.2,2484.9,0.4271]
[1730560833735,2.38973638,2485.4,2485.3,0.28172]
[1730560834033,2.38972638,2485.4,2485.3,0.28172]
[1730560834234,2.10801638,2485.4,2484.9,4.33931]
[1730560834425,2.10801638,2485.4,2485.2,0.28172]
[1730560834625,0.28173,2485.2,2485.1,0.28174]
[1730560835524,5.25192392,2485.3,2485.1,0.28174]
[1730560835719,5.25192392,2485.3,2485.0,0.28175]
[1730560835924,5.25192392,2485.3,2484.9,0.4271]
[1730560836127,0.28174,2485.2,2485.0,0.28175]
[1730560836330,0.4402,2485.1,2485.0,0.28175]
[1730560836537,0.8953,2485.1,2485.0,0.28175]
[1730560836741,1.17704,2485.1,2485.0,0.28175]
[1730560837435,0.28176,2485.0,2484.8,0.28177]
[1730560837623,4.03920754,2485.1,2484.8,0.28177]
[1730560837624,0.28177,2484.9,2484.8,0.28177]
[1730560838631,6.14722392,2485.1,2484.5,1.8032]
[1730560838833,6.14722392,2485.1,2484.8,0.28177]
[1730560838834,0.28176,2485.0,2484.8,0.28177]
[1730560839025,6.14722392,2485.1,2484.5,0.9022]
[1730560839232,0.28177,2484.9,2484.8,0.28177]
[1730560839836,3.14390754,2484.9,2484.5,0.9022]
[1730560840131,0.28179,2484.7,2484.6,0.2818]
[1730560840536,5.25192392,2484.9,2484.5,0.9022]
[1730560840727,0.28178,2484.8,2484.7,0.28179]
[1730560840925,0.28178,2484.8,2484.5,1.184]
[1730560841129,0.7143,2484.7,2484.6,0.2818]
[1730560841633,0.71429,2484.7,2484.6,0.2818]
[1730560842735,0.4325,2484.7,2484.6,0.2818]
[1730560843132,0.28178,2484.8,2484.5,0.9022]
[1730560843133,2.10801638,2484.9,2484.5,0.9022]
[1730560843434,0.28178,2484.8,2484.7,0.28178]
[1730560843634,2.10801638,2485.0,2484.5,1.60673]
[1730560843825,0.4402,2485.1,2485.0,0.28176]
[1730560844030,0.4498,2485.2,2485.1,0.28174]
[1730560847339,2.10801638,2485.3,2485.2,0.28173]
[1730560847527,2.10801638,2485.5,2485.0,4.4745]
[1730560847731,2.10801638,2485.6,2485.5,0.2817]
[1730560847932,2.81069638,2485.7,2485.6,0.28169]
[1730560848143,2.52901638,2485.7,2485.6,0.28169]
[1730560848527,0.421,2485.7,2485.6,0.28169]
[1730560849132,0.70268,2485.7,2485.6,0.28169]
[1730560849435,0.421,2485.7,2485.6,0.28169]
[1730560850135,3.42557754,2485.8,2485.6,0.28169]
[1730560850437,2.10801638,2485.9,2485.8,0.28166]
[1730560850638,0.4389,2486.0,2485.9,0.28165]
[1730560850832,2.10801638,2486.2,2485.7,3.2078]
[1730560851146,0.70941,2486.3,2486.1,0.28163]
[1730560852843,0.4278,2486.3,2485.8,0.4354]
[1730560853040,0.28163,2486.2,2485.8,0.4354]
[1730560853546,0.70942,2486.3,2486.1,0.28163]
[1730560853737,3.91722,2486.3,2486.1,0.28163]
[1730560854754,3.6356,2486.3,2486.1,0.28163]
[1730560855046,0.28162,2486.2,2486.1,0.28163]
[1730560855247,3.6356,2486.3,2486.1,0.28163]
[1730560855547,0.28162,2486.2,2486.1,0.28163]
[1730560855940,3.91721,2486.3,2486.1,0.28163]
[1730560856337,0.4389,2486.4,2485.8,1.3364]
[1730560856542,0.28159,2486.5,2486.3,0.2816]
[1730560856749,0.72808,2486.6,2486.4,0.2816]
[1730560857443,0.72808,2486.6,2486.5,0.28159]
[1730560858350,0.72807,2486.6,2486.5,0.28159]
[1730560858543,0.72807,2486.6,2486.4,0.28159]
[1730560858751,0.4465,2486.6,2486.2,0.433]
[1730560858946,3.14390754,2486.5,2486.2,0.433]
[1730560859141,0.28163,2486.1,2486.0,3.48944]
[1730560859339,0.28163,2486.2,2486.0,3.48944]
[1730560859551,0.28163,2486.1,2486.0,3.48944]
[1730560859947,1.15133,2486.2,2486.1,0.28163]
[1730560860252,0.8697,2486.2,2486.0,3.2078]
[1730560860452,0.28163,2486.1,2486.0,3.2078]
[1730560860748,0.28163,2486.1,2485.8,0.8962]
[1730560860749,0.28165,2485.9,2485.8,0.8962]
[1730560861247,0.28167,2485.8,2485.7,0.28168]
[1730560861645,0.28167,2485.8,2485.6,1.15278]
[1730560861846,0.28167,2485.8,2485.7,0.28168]
[1730560862046,0.28167,2485.8,2485.6,1.15278]
[1730560862450,0.28167,2485.8,2485.7,0.28168]
[1730560862843,3.2078,2486.1,2485.6,0.8711]
[1730560863043,3.2078,2486.1,2486.0,0.28164]
[1730560863044,0.28164,2486.1,2486.0,0.28164]
[1730560863350,0.28164,2486.1,2485.9,0.28164]
[1730560863552,0.8697,2486.2,2485.6,0.8711]
[1730560863754,0.28166,2485.9,2485.8,0.28166]
[1730560864052,0.28164,2486.0,2485.9,0.28165]
[1730560864349,0.28166,2485.9,2485.8,0.28166]
[1730560864846,0.28167,2485.8,2485.7,0.28167]
[1730560865054,0.28166,2485.9,2485.7,0.28167]
[1730560865246,0.28166,2485.9,2485.6,0.8711]
[1730560865563,3.2078,2486.1,2485.6,0.8711]
[1730560865741,3.2078,2486.1,2485.5,3.2078]
[1730560865742,0.28169,2485.7,2485.5,3.48949]
[1730560865946,0.28169,2485.6,2485.5,3.48949]
[1730560866246,0.4554,2485.9,2485.5,3.2078]
[1730560866445,0.4554,2485.9,2485.6,0.28169]
[1730560866446,0.28168,2485.7,2485.6,0.28169]
[1730560866640,0.28169,2485.6,2485.5,3.48949]
[1730560866866,0.28168,2485.7,2485.6,0.28169]
[1730560867049,0.4257,2485.8,2485.7,0.28168]
[1730560867549,0.28166,2485.9,2485.8,0.28166]
[1730560872959,0.28166,2485.9,2485.7,0.28167]
[1730560873264,3.14390754,2486.0,2485.5,0.28169]
[1730560873554,0.28169,2485.6,2485.5,0.28169]
[1730560873757,0.28168,2485.7,2485.6,0.28168]
[1730560873955,3.14390754,2486.0,2485.4,0.8843]
[1730560874162,0.4257,2486.1,2485.5,0.70425]
[1730560874364,0.28165,2486.0,2485.9,0.28165]
[1730560875662,0.4257,2486.1,2486.0,0.28164]
[1730560876259,0.28162,2486.3,2486.2,0.28162]
[1730560876963,0.28162,2486.3,2486.2,0.71462]
[1730560877867,0.28162,2486.3,2486.2,0.433]
[1730560878265,0.28162,2486.3,2486.2,0.71462]
[1730560879357,0.4326,2486.4,2486.3,0.28161]
[1730560879768,0.7142,2486.4,2486.3,0.28161]
[1730560881061,0.4326,2486.4,2486.3,0.28161]
[1730560885268,0.28158,2486.6,2486.5,0.28159]
[1730560885471,0.28158,2486.6,2486.3,0.4419]
[1730560885665,0.28158,2486.6,2486.5,0.28159]
[1730560887363,0.28159,2486.5,2486.4,0.28159]
[1730560888258,3.56530754,2486.7,2486.3,0.4419]
[1730560888771,3.84687754,2486.7,2486.6,0.28157]
[1730560889473,3.56530754,2486.7,2486.3,0.4419]
[1730560889671,0.28158,2486.6,2486.5,0.28158]
[1730560891069,0.28161,2486.3,2486.2,0.28161]
[1730560891465,1.44897682,2486.4,2486.1,0.4185]
[1730560891668,0.28159,2486.5,2486.4,0.2816]
[1730560892571,0.28157,2486.7,2486.6,0.28157]
[1730560896376,0.28154,2486.9,2486.8,0.28155]
[1730560896572,0.4445,2487.1,2486.7,0.4256]
[1730560896775,0.28154,2487.0,2486.9,0.28154]
[1730560897871,0.4445,2487.1,2486.7,0.4256]
[1730560898680,0.72602,2487.1,2487.0,0.28153]
[1730560898979,1.88259682,2487.2,2486.7,0.4256]
[1730560898980,2e-05,2487.2,2487.1,0.28152]
[1730560899182,2e-05,2487.2,2487.1,1.73049682]
[1730560899584,2e-05,2487.2,2487.1,5.75129682]
[1730560900581,2e-05,2487.2,2487.1,4.30232]
[1730560903775,2e-05,2487.2,2487.1,5.20132]
[1730560904088,2e-05,2487.2,2487.1,5.76152418]
[1730560904276,2e-05,2487.2,2487.1,5.95884998]
[1730560905378,2e-05,2487.2,2487.1,5.3986458]
[1730560905786,2e-05,2487.2,2487.1,5.95818105]
[1730560906484,2e-05,2487.2,2487.1,5.95793614]
[1730560907300,2e-05,2487.2,2487.1,5.3986458]
[1730560907481,2.62969012,2487.7,2487.6,0.28146]
[1730560907788,4.91714525,2488.3,2487.7,0.70361]
[1730560907789,0.4579,2488.3,2487.7,0.70361]
[1730560907980,0.4579,2488.3,2488.2,0.28139]
[1730560908378,0.73928,2488.3,2488.2,0.28139]
[1730560909293,0.28137,2488.5,2488.1,3.13832931]
[1730560909484,0.28137,2488.5,2488.3,0.28137]
[1730560910288,0.28136,2488.5,2488.3,0.28137]
[1730560910681,0.73326,2488.5,2488.3,0.28137]
[1730560911093,0.4519,2488.5,2488.3,0.28137]
[1730560911390,0.4519,2488.5,2488.2,0.4418]
[1730560911689,0.28137,2488.4,2488.2,0.72319]
[1730560911891,0.28137,2488.4,2488.3,0.28138]
[1730560912288,0.73326,2488.5,2488.3,0.28138]
[1730560913484,0.28137,2488.4,2488.3,0.28138]
[1730560913995,0.28137,2488.4,2488.2,0.72319]
[1730560914293,0.28138,2488.4,2488.2,0.4418]
[1730560914492,0.28138,2488.4,2488.3,0.28138]
[1730560915288,0.4519,2488.5,2488.2,0.72319]
[1730560915485,0.28137,2488.4,2488.3,0.28138]
[1730560915688,3.2078,2488.4,2487.9,3.2078]
[1730560915995,0.28143,2487.9,2487.7,1.17945]
[1730560916296,0.8937,2487.8,2487.7,1.17945]
[1730560916796,0.8937,2487.8,2487.7,5.19945]
[1730560917295,0.8937,2487.8,2487.7,1.17945]
[1730560918987,1.17514,2487.8,2487.7,1.17945]
[1730560919193,0.8937,2487.8,2487.7,1.17945]
[1730560919893,1.17514,2487.8,2487.6,3.58052931]
[1730560920096,1.17514,2487.8,2487.7,0.28145]
[1730560920097,1.17515,2487.8,2487.7,0.28145]
[1730560920296,0.8937,2487.8,2487.7,0.28145]
[1730560920498,0.4417,2487.8,2487.7,0.28145]
[1730560920890,0.4417,2487.8,2487.7,1.15675]
[1730560922398,0.4417,2487.8,2487.7,0.73625]
[1730560922597,0.72314,2487.8,2487.7,0.73625]
[1730560922799,0.28146,2487.7,2487.5,3.2078]
[1730560922994,0.4587,2487.6,2487.5,3.48927]
[1730560923296,0.4417,2487.8,2487.7,0.28145]
[1730560923494,0.74011,2488.1,2488.0,0.28142]
[1730560923695,0.4587,2488.1,2488.0,0.28142]
[1730560923900,0.7401,2488.1,2488.0,0.28142]
[1730560924597,0.4587,2488.1,2488.0,0.28142]
[1730560924800,0.7401,2488.1,2488.0,0.28142]
[1730560925298,0.4587,2488.1,2488.0,0.28142]
[1730560925896,0.7401,2488.1,2488.0,0.28142]
[1730560926702,0.4587,2488.1,2487.8,3.2078]
[1730560926903,0.71872,2488.0,2487.9,0.28143]
[1730560927600,0.71872,2488.0,2487.8,3.2078]
[1730560928299,0.28144,2487.8,2487.7,0.28144]
[1730560931296,0.28147,2487.6,2487.5,0.28146]
[1730560931506,0.28146,2487.7,2487.6,0.28146]
[1730560932101,0.28146,2487.6,2487.5,0.28147]
[1730560932301,0.73006,2487.6,2487.5,0.28147]
[1730560932489,0.4486,2487.6,2487.5,0.28147]
[1730560932911,0.8762,2487.6,2487.5,0.28147]
[1730560933099,1.15766,2487.6,2487.5,0.28147]
[1730560933397,0.8762,2487.6,2487.5,0.28147]
[1730560933796,1.15766,2487.6,2487.5,0.28147]
[1730560934300,0.28148,2487.4,2487.3,3.2078]
[1730560934604,3.2078,2487.5,2487.2,0.2815]
[1730560934809,0.28151,2487.2,2487.1,0.28151]
[1730560935101,0.28151,2487.2,2487.1,0.28152]
[1730560935702,0.28151,2487.2,2487.0,0.898]
[1730560935703,0.4341,2487.4,2487.0,0.898]
[1730560935907,0.28149,2487.4,2487.3,0.2815]
[1730560936099,0.8762,2487.6,2487.2,3.13832931]
[1730560936403,0.8762,2487.6,2487.5,0.28147]
[1730560936606,3.46067831,2488.1,2487.6,0.28146]
[1730560936607,0.28143,2487.9,2487.6,0.28146]
[1730560936798,0.4616,2487.9,2487.8,0.28144]
[1730560939614,0.74303,2487.9,2487.8,0.28144]
[1730560940203,0.4616,2487.9,2487.5,0.898]
[1730560940403,0.28145,2487.8,2487.7,0.28145]
[1730560940605,0.28144,2487.8,2487.7,0.28144]
[1730560942008,0.28142,2488.0,2487.9,0.28142]
[1730560942211,0.71931,2488.1,2488.0,0.28142]
[1730560943008,2.1039869,2488.2,2487.7,0.70362]
[1730560943209,2.62998363,2488.3,2488.2,0.28139]
[1730560943210,2.1039869,2488.3,2488.2,0.28139]
[1730560943509,2.3853669,2488.3,2488.2,0.28139]
[1730560943712,2.1039869,2488.3,2488.2,0.28139]
[1730560944102,0.28138,2488.3,2488.2,0.28139]
[1730560944913,2.5399869,2488.4,2488.0,0.8879]
[1730560945208,2.5399869,2488.4,2488.3,0.28138]
[1730560945411,2.8213569,2488.4,2488.3,0.28138]
[1730560945713,0.436,2488.4,2488.3,0.28138]
[1730560946406,2.8487569,2488.5,2488.0,1.59144]
[1730560946407,2.1039869,2488.5,2488.0,1.59144]
[1730560946616,2.1039869,2488.6,2488.5,0.28136]
[1730560946803,6.0189269,2488.7,2488.3,0.70346]
[1730560947005,6.0189269,2488.7,2488.6,0.28135]
[1730560947206,5.7375869,2488.7,2488.6,0.28135]
[1730560947413,3.6336,2488.7,2488.6,0.28135]
[1730560947808,2.1039869,2488.8,2488.7,0.28134]
[1730560948014,5.3117869,2489.0,2488.7,0.8799]
[1730560948209,0.28133,2488.8,2488.7,1.16123]
[1730560948409,2.1039869,2488.9,2488.3,0.898]
[1730560948712,0.4258,2488.7,2488.6,0.28135]
[1730560948923,0.70714,2488.7,2488.6,0.28135]
[1730560949119,0.4258,2488.7,2488.6,0.28135]
[1730560949413,0.28133,2488.8,2488.7,0.28133]
[1730560949905,0.28134,2488.7,2488.6,0.28135]
[1730560950306,0.28133,2488.8,2488.7,0.28133]
[1730560950714,2.5437869,2488.9,2488.3,2.48135]
[1730560950912,0.28134,2488.7,2488.6,0.28134]
[1730560951508,0.28133,2488.8,2488.5,0.28135]
[1730560951709,0.28135,2488.7,2488.3,1.7779]
[1730560951915,0.28134,2488.7,2488.6,0.28135]
[1730560952114,0.28133,2488.8,2488.7,0.28133]
[1730560952414,0.28134,2488.7,2488.6,0.28134]
[1730560952616,2.5437869,2488.9,2488.3,1.7779]
[1730560952811,0.28135,2488.7,2488.6,0.28135]
[1730560954518,0.28135,2488.7,2488.3,1.7779]
[1730560954519,0.28133,2488.8,2488.7,0.28133]
[1730560955117,0.4398,2488.9,2488.3,1.7779]
[1730560955321,2.5437869,2488.9,2488.3,1.7779]
[1730560955620,0.28133,2488.8,2488.7,0.28133]
[1730560956626,0.4398,2488.9,2488.3,2.48135]
[1730560956823,0.72112,2488.9,2488.8,0.28133]
[1730560958026,0.4398,2488.9,2488.8,0.28133]
[1730560958430,3.48911,2489.0,2488.9,0.28131]
[1730560958623,2.1039869,2489.2,2488.9,4.0176]
[1730560958825,0.28129,2489.2,2489.1,0.28129]
[1730560959425,0.28128,2489.2,2489.1,0.28129]
[1730560959728,0.4487,2489.3,2489.2,0.28128]
[1730560959729,0.72998,2489.3,2489.2,0.28128]
[1730560960726,0.72998,2489.3,2489.1,0.28128]
[1730560960928,0.28128,2489.2,2489.1,0.28128]
[1730560961129,0.28128,2489.2,2488.9,0.4326]
[1730560961423,0.28128,2489.2,2489.1,0.28129]
[1730560961826,7.30522993,2489.5,2489.1,0.28129]
[1730560962031,0.28126,2489.4,2489.3,0.28126]
[1730560962330,3.2078,2489.5,2489.1,0.28128]
[1730560962524,0.28128,2489.3,2489.1,0.28128]
[1730560962723,0.28128,2489.3,2489.2,0.28128]
[1730560963031,0.28126,2489.4,2489.3,0.28127]
[1730560963724,0.28127,2489.3,2489.2,0.28127]
[1730560964225,3.2078,2489.5,2489.4,0.28126]
[1730560964226,3.48905,2489.5,2489.4,0.28126]
[1730560964527,3.2078,2489.5,2489.4,0.28126]
[1730560964834,3.2078,2489.5,2489.4,3.41958931]
[1730560965525,3.2078,2489.5,2489.4,4.74728931]
[1730560966332,3.2078,2489.8,2489.4,8.48282931]
[1730560966527,3.2078,2489.8,2489.7,0.28122]
[1730560967631,0.455,2490.0,2489.9,0.2812]
[1730560967825,0.73619,2490.0,2489.6,3.13832931]
[1730560968027,0.455,2490.0,2489.9,0.2812]
[1730560968231,0.455,2490.0,2489.6,3.13832931]
[1730560968430,0.7362,2490.0,2489.8,0.2812]
[1730560968728,0.2812,2489.9,2489.8,0.2812]
[1730560969238,0.2812,2489.9,2489.6,3.13832931]
[1730560969530,0.7362,2490.0,2489.8,0.28121]
[1730560969834,0.28121,2489.9,2489.7,0.28121]
[1730560970025,0.28121,2489.9,2489.8,0.28121]
[1730560971126,0.28121,2489.9,2489.7,0.28121]
[1730560971334,0.28121,2489.9,2489.7,0.28122]
[1730560971532,0.28121,2489.9,2489.6,3.13832931]
[1730560971826,0.28121,2489.9,2489.8,0.28121]
[1730560972031,0.74249,2490.1,2489.6,3.13832931]
[1730560972231,0.74249,2490.1,2489.9,0.28119]
[1730560972433,0.74248,2490.1,2489.9,0.28119]
[1730560972633,0.74248,2490.1,2489.9,0.2812]
[1730560972841,0.74248,2490.1,2489.9,0.28119]
[1730560973230,0.74248,2490.1,2490.0,0.28119]
[1730560973738,0.74248,2490.1,2489.9,0.28119]
[1730560973931,0.74248,2490.1,2490.0,0.4455]
[1730560978132,0.4613,2490.1,2489.6,3.13832931]
[1730560978344,0.28121,2489.9,2489.8,0.28121]
[1730560978734,0.2812,2490.0,2489.9,0.2812]
[1730560978936,0.2812,2490.0,2489.7,0.4296]
[1730560979235,0.2812,2490.0,2489.9,0.2812]
[1730560979437,0.4613,2490.1,2489.7,0.4296]
[1730560979638,0.28121,2489.8,2489.7,0.4296]
[1730560980136,0.28121,2489.8,2489.7,0.71082]
[1730560980337,0.28121,2489.8,2489.7,0.4296]
[1730560980637,0.28121,2489.8,2489.7,0.71082]
[1730560980831,4.1249,2490.1,2489.9,0.28119]
[1730560980832,3.95028,2490.1,2489.9,0.28119]
[1730560981037,3.95028,2490.1,2490.0,0.28119]
[1730560981945,0.4613,2490.1,2490.0,0.28119]
[1730560982437,0.74248,2490.1,2490.0,0.28119]
[1730560982839,0.4613,2490.1,2490.0,0.28119]
[1730560983240,3.2078,2490.4,2489.7,0.4296]
[1730560983547,0.28117,2490.2,2490.1,0.28118]
[1730560984435,0.4595,2490.3,2490.2,0.28117]
[1730560984636,0.74066,2490.3,2490.2,0.8911]
[1730560984835,0.74066,2490.3,2490.2,1.17227]
[1730560985041,0.74066,2490.3,2490.2,0.8911]
[1730560985645,0.4595,2490.3,2490.2,1.17227]
[1730560986137,3.95105,2490.4,2490.3,0.28116]
[1730560986138,3.6699,2490.4,2490.3,0.28116]
[1730560986339,3.95105,2490.4,2490.2,1.17226]
[1730560986535,0.74325,2490.4,2490.2,1.17226]
[1730560986743,0.436,2490.3,2490.2,1.17226]
[1730560990641,0.71716,2490.3,2490.2,1.17226]
[1730560991041,0.436,2490.3,2490.2,1.17226]
[1730560992044,0.71716,2490.3,2490.2,1.17226]
[1730560992251,0.436,2490.3,2490.2,1.17226]
[1730560992748,3.6438,2490.3,2490.2,1.17226]
[1730560994143,3.6438,2490.3,2489.9,3.84139931]
[1730560994144,3.6438,2490.3,2489.8,3.91084]
[1730560994341,3.6438,2490.3,2489.7,1.3325]
[1730560994342,3.2078,2490.1,2489.7,1.3325]
[1730560994546,3.2078,2490.1,2490.0,0.28122]
[1730560994852,3.48901,2490.1,2490.0,0.28122]
[1730560995543,3.48901,2490.1,2489.7,1.3325]
[1730560995850,0.28122,2490.0,2489.9,0.28122]
[1730560996449,3.48901,2490.1,2489.7,1.3325]
[1730560996747,0.441,2489.9,2489.8,0.28124]
[1730560997544,3.60042931,2490.4,2489.8,4.016]
[1730560997545,0.28119,2490.3,2489.8,4.016]
[1730560997745,0.2812,2490.2,2490.1,0.2812]
[1730560998557,0.28121,2490.1,2490.0,0.28121]
[1730560998850,3.2078,2490.1,2490.0,0.28122]
[1730561000055,0.4363,2490.3,2489.7,1.3325]
[1730561000245,3.2078,2490.1,2490.0,0.28122]
[1730561000642,0.4363,2490.3,2490.2,0.2812]
[1730561001049,0.4621,2490.4,2490.3,0.28118]
[1730561001249,3.6699,2490.4,2490.3,0.28118]
[1730561001445,0.4621,2490.4,2490.3,0.28118]
[1730561001651,3.6699,2490.4,2490.3,0.28118]
[1730561003952,3.2078,2490.4,2490.3,0.28118]
[1730561009164,5.3117869,2490.4,2490.3,0.28118]
[1730561009359,3.2078,2490.4,2490.3,0.28118]
[1730561009567,5.3117869,2490.4,2490.3,0.28118]
[1730561010758,5.3117869,2490.4,2490.3,0.73078]
[1730561011262,2.1039869,2490.6,2490.5,0.28116]
[1730561011561,3.48288363,2490.7,2490.6,0.28115]
[1730561011562,2.9568869,2490.7,2490.6,0.28115]
[1730561012859,5.83778363,2490.8,2490.7,0.28114]
[1730561012860,2.1039869,2490.8,2490.7,0.28114]
[1730561013062,2.1039869,2491.0,2490.9,0.28112]
[1730561013362,0.28112,2490.9,2490.7,0.28113]
[1730561013571,3.2078,2490.8,2490.7,0.28113]
[1730561013872,3.2078,2490.8,2490.5,0.895]
[1730561014054,0.4521,2490.7,2490.6,0.28115]
[1730561014366,0.8891,2490.7,2490.6,0.28115]
[1730561015061,4.0969,2490.7,2490.6,0.28115]
[1730561015263,0.8891,2490.7,2490.6,0.28115]
[1730561015567,4.0969,2490.7,2490.6,0.28115]
[1730561015860,0.4521,2490.7,2490.6,0.28115]
[1730561017171,0.4521,2490.7,2490.6,3.41947931]
[1730561017566,0.4521,2490.7,2490.6,0.28115]
[1730561017869,3.6599,2490.7,2490.4,4.46822931]
[1730561018069,3.6599,2490.7,2490.5,0.55630444]
[1730561018265,0.28118,2490.4,2490.3,0.28118]
[1730561018463,3.48898,2490.4,2490.3,0.28118]
[1730561018664,7.223,2490.4,2490.3,0.28118]
[1730561018971,7.50417,2490.4,2490.3,0.28118]
[1730561019166,7.94547,2490.4,2490.3,0.28118]
[1730561019369,7.94547,2490.4,2490.1,4.01472931]
[1730561019370,9.76775284,2490.4,2489.7,4.64010511]
[1730561019675,5.59243326,2490.1,2490.0,0.28122]
[1730561019966,5.31122326,2490.1,2490.0,0.28122]
[1730561020568,5.31122326,2490.1,2489.7,3.56472931]
[1730561020769,5.59243326,2490.1,2489.9,0.28122]
[1730561020967,5.59243326,2490.1,2490.0,0.28122]
[1730561021576,2.38463326,2490.1,2490.0,0.28122]
[1730561021875,2.38462326,2490.2,2490.0,0.28122]
[1730561022070,2.10342326,2490.1,2490.0,0.28122]